fUST/lending_fUST_20250630
["ID","MTS","AMOUNT","RATE_DAILY","PERIOD"]
[368663440,1751278232461,-460.0,0.00018728,2]
[368663441,1751278232470,-382.69434022,0.00018728,2]
[368663444,1751278232482,-77.30565978,0.00018728,2]
[368663446,1751278232491,-460.0,0.00018728,2]
[368663448,1751278232500,-460.0,0.00018729,2]
[368663450,1751278232509,-118.21204197,0.00018729,2]
[368663452,1751278232527,-341.78795803,0.00018729,2]
[368663454,1751278232536,-460.0,0.00018733,2]
[368663456,1751278232545,-239.98525539,0.00018769,2]
[368663458,1751278232554,-1834.24357861,0.000189,2]
[368663460,1751278232563,-2477.34671304,0.000189,2]
[368663462,1751278232575,-1028.46713428,0.000189,2]
[368663463,1751278232584,-460.0,0.00019001,2]
[368663464,1751278232593,-786.97,0.00019001,2]
[368663466,1751278232603,-568.02,0.00019001,2]
[368663467,1751278232612,-550.31,0.00019001,2]
[368663468,1751278232621,-151.1966803,0.00019001,2]
[368663469,1751278232632,-577.74965742,0.00019001,2]
[368663470,1751278232643,-135.08366228,0.00019001,2]
[368663471,1751278232654,-652.54,0.00019001,2]
[368663472,1751278232663,-460.0,0.00019001,2]
[368663473,1751278232672,-460.0,0.00019001,2]
[368663474,1751278232682,-460.0,0.00019001,2]
[368663475,1751278232691,-460.0,0.00019001,2]
[368663476,1751278232701,-460.0,0.00019002,2]
[368663477,1751278232710,-460.0,0.00019002,2]
[368663478,1751278232720,-1686.62,0.00019002,2]
[368663479,1751278232729,-460.0,0.00019002,2]
[368663480,1751278232738,-182.6902953,0.00019002,2]
[368663488,1751278238003,-721.39,0.00018727,2]
[368663489,1751278238013,-460.0,0.00019001,2]
[368663490,1751278238024,-721.39,0.00019001,2]
[368663491,1751278238034,-731.6397047,0.00019002,2]
[368663492,1751278238044,-460.0,0.00019002,2]
[368663493,1751278238057,-460.0,0.00019002,2]
[368663494,1751278238066,-460.0,0.00019002,2]
[368663495,1751278238076,-460.0,0.00019002,2]
[368663496,1751278238086,-460.0,0.00019002,2]
[368663497,1751278238095,-460.0,0.00019002,2]
[368663498,1751278238104,-460.0,0.00019003,2]
[368663499,1751278238114,-438.38731499,0.00019003,2]
[368663500,1751278238127,-21.61268501,0.00019003,2]
[368663501,1751278238137,-230.31346914,0.00019042,2]
[368663502,1751278238147,-160.0,0.00019042,2]
[368663503,1751278238156,-160.0,0.00019042,2]
[368663504,1751278238165,-847.41730813,0.00019042,2]
[368663505,1751278238175,-147.8944441,0.00019042,2]
[368663506,1751278238203,-67.10404225,0.00019042,2]
[368663507,1751278238213,-837.16779106,0.00019042,2]
[368663508,1751278238223,-160.0,0.00019042,2]
[368663509,1751278238232,-213.84631524,0.00019042,2]
[368663510,1751278238242,-160.0,0.00019042,2]
[368663511,1751278238251,-12569.13231816,0.00019042,2]
[368663512,1751278238260,-575.4102369,0.000191,2]
[368663513,1751278238270,-3505.81384708,0.00019107,2]
[368663514,1751278238279,-375.283193,0.00019178,2]
[368663515,1751278238289,-166.35872232,0.00019274,2]
[368663516,1751278238298,-169.29996246,0.00019274,2]
[368663517,1751278238308,-16334.72273,0.00019274,2]
[368663518,1751278238317,-571.33758694,0.00019275,2]
[368663519,1751278238326,-460.0,0.00019275,2]
[368663520,1751278238334,-568.02,0.00019275,2]
[368663521,1751278238342,-550.31,0.00019275,2]
[368663522,1751278238351,-864.03,0.00019275,2]
[368663523,1751278238359,-652.54,0.00019275,2]
[368663524,1751278238368,-460.0,0.00019275,2]
[368663525,1751278238376,-460.0,0.00019275,2]
[368663526,1751278238384,-460.0,0.00019275,2]
[368663527,1751278238394,-460.0,0.00019275,2]
[368663528,1751278238403,-460.0,0.00019275,2]
[368663529,1751278238412,-721.39,0.00019275,2]
[368663530,1751278238422,-460.0,0.00019276,2]
[368663531,1751278238433,-460.0,0.00019276,2]
[368663532,1751278238444,-1686.62,0.00019276,2]
[368663533,1751278238453,-460.0,0.00019276,2]
[368663534,1751278238464,-914.33,0.00019276,2]
[368663535,1751278238474,-460.0,0.00019276,2]
[368663536,1751278238484,-460.0,0.00019276,2]
[368663537,1751278238493,-460.0,0.00019276,2]
[368663538,1751278238502,-460.0,0.00019276,2]
[368663539,1751278238513,-460.0,0.00019276,2]
[368663540,1751278238524,-460.0,0.00019276,2]
[368663541,1751278238534,-460.0,0.00019277,2]
[368663542,1751278238543,-460.0,0.00019277,2]
[368663543,1751278238553,-400.0,0.00019277,2]
[368663544,1751278238562,-460.0,0.00019277,2]
[368663545,1751278238572,-457.59336901,0.00019277,2]
[368663546,1751278238581,-460.0,0.00019277,2]
[368663547,1751278238591,-460.0,0.00019277,2]
[368663548,1751278238600,-442.80731982,0.00019277,2]
[368663549,1751278238609,-460.81458503,0.00019277,2]
[368663550,1751278238619,-461.34541772,0.00019277,2]
[368663551,1751278238628,-460.0,0.00019277,2]
[368663552,1751278238637,-460.0,0.00019277,2]
[368663553,1751278238647,-182.81356645,0.00019277,2]
[368663556,1751278240252,-277.18643355,0.00019277,2]
[368663557,1751278240262,-26.24356645,0.00019277,2]
[368663613,1751279103859,4438.58833919,0.00017805,2]
[368663614,1751279103884,10000.0,0.00017805,2]
[368663615,1751279103909,10000.0,0.00017805,2]
[368663616,1751279103933,461.41166081,0.00017805,2]
[368663620,1751279172067,207.171567,0.00013699,2]
[368663657,1751279432275,-1200.0,0.00018424,2]
[368663658,1751279432287,-168.85993166,0.00018515,2]
[368663659,1751279432300,-207.4,0.00018604,2]
[368663660,1751279432312,-460.0,0.00018614,2]
[368663661,1751279432325,-300.0,0.00018614,2]
[368663662,1751279432337,-300.0,0.00018614,2]
[368663663,1751279432350,-168.0,0.00018614,2]
[368663664,1751279432361,-1200.0,0.00018614,2]
[368663665,1751279432372,-5668.04572817,0.00018615,2]
[368663666,1751279432384,-33609.24014944,0.00018615,2]
[368663667,1751279432395,-714.17,0.00018625,2]
[368663668,1751279432406,-460.0,0.00018625,2]
[368663669,1751279432416,-520.68,0.00018625,2]
[368663670,1751279432427,-661.27,0.00018625,2]
[368663671,1751279432439,-598.16,0.00018625,2]
[368663673,1751279432450,-460.0,0.00018625,2]
[368663675,1751279432463,-504.45,0.00018625,2]
[368663676,1751279432474,-460.0,0.00018625,2]
[368663677,1751279432485,-460.0,0.00018625,2]
[368663678,1751279432496,-461.34541772,0.00018626,2]
[368663679,1751279432506,-460.0,0.00018626,2]
[368663680,1751279432518,-460.0,0.00018626,2]
[368663681,1751279432529,-182.81356645,0.00018626,2]
[368663682,1751279432540,-460.0,0.00018725,2]
[368663683,1751279432551,-1546.07,0.00018725,2]
[368663684,1751279432564,-460.0,0.00018725,2]
[368663685,1751279432575,-313.91498691,0.00018727,2]
[368663686,1751279432587,-460.0,0.00018727,2]
[368663687,1751279432598,-420.32095063,0.00018728,2]
[368663688,1751279432609,-460.0,0.00018728,2]
[368663689,1751279432620,-462.45484069,0.00018728,2]
[368663690,1751279432631,-460.0,0.00018728,2]
[368663691,1751279432642,-460.0,0.00018728,2]
[368663692,1751279432653,-500.0,0.00018728,2]
[368663693,1751279432663,-460.0,0.00018728,2]
[368663694,1751279432674,-426.75246136,0.00018729,2]
[368663695,1751279432684,-442.76133526,0.00018729,2]
[368663696,1751279432695,-460.0,0.00018729,2]
[368663697,1751279432705,-460.0,0.00018729,2]
[368663698,1751279432717,-306.22924127,0.00018729,2]
[368663699,1751279432730,-460.0,0.00018888,2]
[368663700,1751279432742,-500.0,0.00018898,2]
[368663701,1751279432755,-500.98281029,0.00018898,2]
[368663702,1751279432766,-500.0,0.00018898,2]
[368663703,1751279432778,-500.0,0.00018898,2]
[368663704,1751279432790,-169.29996246,0.00018898,2]
[368663705,1751279432802,-500.0,0.00018898,2]
[368663706,1751279432814,-500.0,0.00018898,2]
[368663707,1751279432825,-500.0,0.00018898,2]
[368663708,1751279432838,-500.0,0.00018898,2]
[368663709,1751279432849,-500.0,0.00018898,2]
[368663710,1751279432860,-500.0,0.00018898,2]
[368663711,1751279432871,-500.0,0.00018898,2]
[368663712,1751279432882,-500.0,0.00018898,2]
[368663713,1751279432893,-348.42,0.00018898,2]
[368663714,1751279432903,-500.0,0.00018898,2]
[368663715,1751279432913,-494.72842202,0.00018898,2]
[368663716,1751279432924,-393.18038347,0.00018898,2]
[368663717,1751279432935,-500.0,0.00018898,2]
[368663718,1751279432946,-500.0,0.00018898,2]
[368663719,1751279432956,-497.28887275,0.00018898,2]
[368663720,1751279432967,-361.50262452,0.00018898,2]
[368663721,1751279432977,-714.17,0.00018899,2]
[368663722,1751279432988,-460.0,0.00018899,2]
[368663723,1751279432999,-520.68,0.00018899,2]
[368663724,1751279433009,-661.27,0.00018899,2]
[368663725,1751279433020,-598.16,0.00018899,2]
[368663726,1751279433031,-460.0,0.00018899,2]
[368663727,1751279433042,-504.45,0.00018899,2]
[368663728,1751279433054,-460.0,0.00018899,2]
[368663729,1751279433066,-1222.8290524,0.000189,2]
[368663730,1751279433076,-476.686898,0.00018942,2]
[368663731,1751279433087,-460.0,0.00018999,2]
[368663732,1751279433098,-1546.07,0.00018999,2]
[368663733,1751279433109,-460.0,0.00018999,2]
[368663734,1751279433120,-2025.71014739,0.00019,2]
[368663735,1751279433132,-460.0,0.00019,2]
[368663736,1751279433144,-460.0,0.00019,2]
[368663737,1751279433155,-400.0,0.00019,2]
[368663738,1751279433166,-460.0,0.00019,2]
[368663739,1751279433177,-457.59336901,0.00019,2]
[368663740,1751279433188,-460.0,0.00019,2]
[368663741,1751279433200,-300.42287018,0.00019,2]
[368663742,1751279433212,-460.0,0.00019,2]
[368663743,1751279433222,-442.80731982,0.00019,2]
[368663744,1751279433234,-460.81458503,0.00019,2]
[368663745,1751279433245,-460.0,0.00019,2]
[368663746,1751279433256,-838.13,0.00019,2]
[368663747,1751279433266,-460.0,0.00019,2]
[368663748,1751279433276,-460.0,0.00019,2]
[368663749,1751279433287,-14314.70305122,0.00019,2]
[368663750,1751279433297,-460.0,0.00019,2]
[368663751,1751279433308,-460.0,0.00019,2]
[368663752,1751279433318,-460.0,0.00019,2]
[368663753,1751279433328,-284.68964601,0.00019,2]
[368663754,1751279433338,-461.08430158,0.00019,2]
[368663755,1751279433347,-462.79728165,0.00019,2]
[368663756,1751279433357,-460.0,0.00019,2]
[368663757,1751279433366,-460.0,0.00019,2]
[368663758,1751279433376,-494.95,0.00019,2]
[368663759,1751279433385,-460.0,0.00019,2]
[368663760,1751279433396,-460.0,0.00019001,2]
[368663761,1751279433405,-460.0,0.00019002,2]
[368663762,1751279433416,-460.0,0.00019002,2]
[368663763,1751279433426,-500.0,0.00019004,2]
[368663764,1751279433647,-214.99848635,0.00019051,2]
[368663765,1751279433665,-837.16779106,0.00019051,2]
[368663766,1751279433677,-847.41730813,0.00019051,2]
[368663767,1751279433687,-160.0,0.00019051,2]
[368663768,1751279433696,-160.0,0.00019051,2]
[368663769,1751279433706,-160.0,0.00019051,2]
[368663770,1751279433715,-213.84631524,0.00019051,2]
[368663771,1751279433724,-160.0,0.00019051,2]
[368663772,1751279433734,-230.31346914,0.00019051,2]
[368663773,1751279433744,-12569.13231816,0.00019051,2]
[368663774,1751279433756,-160.0,0.00019051,2]
[368663775,1751279433767,-460.0,0.00019162,2]
[368663776,1751279433778,-714.17,0.00019173,2]
[368663777,1751279433788,-460.0,0.00019173,2]
[368663778,1751279433798,-520.68,0.00019173,2]
[368663779,1751279433809,-661.27,0.00019173,2]
[368663780,1751279433819,-598.16,0.00019173,2]
[368663781,1751279433831,-460.0,0.00019173,2]
[368663782,1751279433841,-504.45,0.00019173,2]
[368663783,1751279433851,-322.88,0.00019173,2]
[368663784,1751279433861,-300.226554,0.00019178,2]
[368663785,1751279433870,-461.4650271,0.00019273,2]
[368663786,1751279433880,-468.57960605,0.00019273,2]
[368663787,1751279433890,-460.0,0.00019273,2]
[368663788,1751279433901,-460.0,0.00019273,2]
[368663789,1751279433911,-465.55687511,0.00019273,2]
[368663790,1751279433920,-460.0,0.00019273,2]
[368663791,1751279433929,-463.27170372,0.00019273,2]
[368663792,1751279433939,-394.84347584,0.00019273,2]
[368663793,1751279433953,-65.15652416,0.00019273,2]
[368663794,1751279433963,-873.10347584,0.00019273,2]
[368663795,1751279433975,-126.89652416,0.00019273,2]
[368663796,1751279433984,-599.61703061,0.00019273,2]
[368663797,1751279433994,-263.54992051,0.00019273,2]
[368663802,1751279438263,-50117.6641821,0.00018415,2]
[368663803,1751279438273,-460.0,0.00018625,2]
[368663804,1751279438283,-285.9394594,0.00018625,2]
[368663805,1751279438292,-460.0,0.00018899,2]
[368663806,1751279438301,-154.79782039,0.00018999,2]
[368663807,1751279438310,-388.58765253,0.00018999,2]
[368663808,1751279438320,-205.38,0.00018999,2]
[368663809,1751279438329,-460.0,0.00019,2]
[368663810,1751279438338,-460.0,0.00019173,2]
[368663811,1751279438347,-196.45007949,0.00019273,2]
[368663812,1751279438356,-1546.07,0.00019273,2]
[368663813,1751279438365,-460.0,0.00019273,2]
[368663814,1751279438374,-838.13,0.00019274,2]
[368663815,1751279438383,-460.0,0.00019274,2]
[368663816,1751279438392,-470.6553056,0.00019274,2]
[368663817,1751279438403,-460.0,0.00019274,2]
[368663818,1751279438412,-460.0,0.00019274,2]
[368663819,1751279438421,-494.95,0.00019274,2]
[368663820,1751279438431,-460.0,0.00019274,2]
[368663821,1751279438440,-571.33758794,0.00019276,2]
[368663822,1751279438449,-460.0,0.00019276,2]
[368663823,1751279438459,-430.83712898,0.00019276,2]
[368663824,1751279438467,-460.0,0.00019276,2]
[368663825,1751279438477,-1000.0,0.00019329,2]
[368663826,1751279438485,-1000.0,0.00019329,2]
[368663827,1751279438495,-1029.66923776,0.00019329,2]
[368663828,1751279438504,-151.0,0.00019347,2]
[368663829,1751279438514,-179.354394,0.00019347,2]
[368663830,1751279438523,-151.0,0.00019347,2]
[368663831,1751279438532,-906.428,0.0001943,2]
[368663832,1751279438542,-460.0,0.00019436,2]
[368663833,1751279438551,-714.17,0.00019447,2]
[368663834,1751279438560,-460.0,0.00019447,2]
[368663835,1751279438569,-520.68,0.00019447,2]
[368663836,1751279438578,-661.27,0.00019447,2]
[368663837,1751279438587,-598.16,0.00019447,2]
[368663838,1751279438596,-460.0,0.00019447,2]
[368663839,1751279438605,-504.45,0.00019447,2]
[368663840,1751279438614,-460.0,0.00019447,2]
[368663841,1751279438623,-377.47318672,0.00019449,2]
[368663842,1751279438632,-16334.72273,0.00019449,2]
[368663843,1751279438641,-228.725467,0.0001945,2]
[368663844,1751279438650,-500.0,0.00019451,2]
[368663845,1751279438659,-500.0,0.00019451,2]
[368663846,1751279438668,-1546.07,0.00019547,2]
[368663847,1751279438677,-460.0,0.00019547,2]
[368663848,1751279438686,-838.13,0.00019548,2]
[368663849,1751279438695,-460.0,0.00019548,2]
[368663850,1751279438705,-460.0,0.00019548,2]
[368663851,1751279438714,-460.0,0.00019548,2]
[368663852,1751279438722,-494.95,0.00019548,2]
[368663853,1751279438731,-460.0,0.00019548,2]
[368663854,1751279438740,-460.0,0.00019549,2]
[368663855,1751279438750,-460.0,0.00019549,2]
[368663856,1751279438761,-460.0,0.00019549,2]
[368663857,1751279438770,-460.0,0.00019549,2]
[368663858,1751279438779,-151.0,0.00019549,2]
[368663859,1751279438788,-151.0,0.00019549,2]
[368663860,1751279438798,-151.0,0.00019549,2]
[368663861,1751279438807,-460.0,0.00019549,2]
[368663862,1751279438817,-151.0,0.00019549,2]
[368663863,1751279438826,-460.0,0.00019549,2]
[368663864,1751279438836,-198.633695,0.00019549,2]
[368663865,1751279438845,-460.0,0.00019549,2]
[368663866,1751279438854,-460.0,0.00019549,2]
[368663867,1751279438864,-1062.38,0.00019549,2]
[368663868,1751279438873,-460.0,0.00019549,2]
[368663869,1751279438882,-460.0,0.0001955,2]
[368663870,1751279438891,-460.0,0.0001955,2]
[368663871,1751279438900,-151.0,0.00019621,2]
[368663872,1751279438909,-151.0,0.00019621,2]
[368663873,1751279438918,-151.0,0.00019621,2]
[368663874,1751279438927,-500.0,0.00019673,2]
[368663875,1751279438937,-1000.0,0.00019703,5]
[368663876,1751279438946,-460.0,0.0001971,2]
[368663877,1751279438955,-714.17,0.00019721,2]
[368663878,1751279438964,-460.0,0.00019721,2]
[368663879,1751279438973,-520.68,0.00019721,2]
[368663880,1751279438982,-661.27,0.00019721,2]
[368663881,1751279438991,-598.16,0.00019721,2]
[368663882,1751279439000,-460.0,0.00019721,2]
[368663884,1751279439010,-504.45,0.00019721,2]
[368663886,1751279439019,-460.0,0.00019721,2]
[368663888,1751279439028,-500.0,0.00019767,2]
[368663889,1751279439037,-901.59875828,0.0001978,2]
[368663891,1751279439047,-160.0,0.00019816,3]
[368663893,1751279439056,-1546.07,0.00019821,2]
[368663894,1751279439076,-460.0,0.00019821,2]
[368663895,1751279439086,-838.13,0.00019822,2]
[368663896,1751279439095,-460.0,0.00019822,2]
[368663897,1751279439105,-460.0,0.00019822,2]
[368663898,1751279439115,-460.0,0.00019822,2]
[368663899,1751279439125,-494.95,0.00019822,2]
[368663900,1751279439136,-460.0,0.00019822,2]
[368663901,1751279439146,-151.0,0.00019823,2]
[368663902,1751279439155,-151.0,0.00019823,2]
[368663903,1751279439165,-460.0,0.00019823,2]
[368663904,1751279439175,-460.0,0.00019823,2]
[368663905,1751279439185,-460.0,0.00019823,2]
[368663906,1751279439195,-1062.38,0.00019823,2]
[368663907,1751279439204,-460.0,0.00019823,2]
[368663908,1751279439214,-460.0,0.00019824,2]
[368663909,1751279439224,-460.0,0.00019824,2]
[368663910,1751279439234,-242.41734,0.00019828,2]
[368663911,1751279439245,-2151.0,0.00019829,2]
[368663912,1751279439254,-646.0,0.00019829,2]
[368663913,1751279439264,-406.0,0.00019829,2]
[368663914,1751279439274,-423.35,0.00019829,2]
[368663915,1751279439283,-966.0,0.00019829,2]
[368663916,1751279439293,-151.0,0.0001989,2]
[368663917,1751279439304,-151.0,0.0001989,2]
[368663918,1751279439314,-168.0,0.00019898,2]
[368663919,1751279439323,-151.0,0.000199,2]
[368663920,1751279439333,-151.0,0.000199,2]
[368663921,1751279439342,-160.304928,0.000199,2]
[368663922,1751279439352,-641.0,0.000199,2]
[368663923,1751279439361,-3272.09292398,0.000199,2]
[368663924,1751279439371,-150.122,0.00019957,2]
[368663925,1751279439381,-17970.01889282,0.00019965,2]
[368663926,1751279439391,-215.0738,0.00019973,2]
[368663927,1751279439402,-460.0,0.00019984,2]
[368663928,1751279439412,-17830.68405166,0.0001999,2]
[368663929,1751279440527,-228.725467,0.00019965,2]
[368663930,1751279440536,-83.547333,0.0001999,2]
[368663952,1751279443330,-228.725467,0.0001945,2]
[368663954,1751279443340,-228.725467,0.00019965,2]
[368663955,1751279443350,-1714.22298156,0.0001999,2]
[368663956,1751279443362,-4936.98643706,0.0001999,2]
[368663957,1751279443388,-4249.943898,0.0001999,2]
[368663968,1751279446308,-2523.51432272,0.0001999,2]
[368663979,1751280107057,9331.41677219,0.00017753,2]
[368663980,1751280107082,10000.0,0.00017753,2]
[368663981,1751280107107,5568.58322781,0.00017753,2]
[368663983,1751280183972,196.812988,0.00013699,2]
[368663990,1751280470262,10438.59092657,0.00021918,60]
[368664018,1751280632518,-300.0,0.00018423,2]
[368664019,1751280632527,-212.0,0.00018423,2]
[368664020,1751280632537,-198.17380002,0.00018423,2]
[368664021,1751280632570,-101.82619998,0.00018423,2]
[368664022,1751280632579,-300.0,0.00018423,2]
[368664023,1751280632589,-369.95024874,0.00018424,2]
[368664043,1751280638460,-90.04975126,0.00018424,2]
[368664044,1751280638470,-1200.0,0.00018613,2]
[368664045,1751280638479,-460.0,0.00018614,2]
[368664046,1751280638489,-460.0,0.00018614,2]
[368664047,1751280638500,-460.0,0.00018614,2]
[368664048,1751280638509,-460.0,0.00018614,2]
[368664049,1751280638519,-471.34,0.00018614,2]
[368664050,1751280638528,-460.0,0.00018698,2]
[368664051,1751280638537,-500.0,0.00018725,2]
[368664052,1751280638546,-500.0,0.00018725,2]
[368664053,1751280638556,-641.03712898,0.00018727,2]
[368664054,1751280638566,-207.4,0.00018876,2]
[368664056,1751280638575,-624.9,0.00018885,2]
[368664057,1751280638585,-578.61,0.00018885,2]
[368664058,1751280638595,-460.0,0.00018885,2]
[368664059,1751280638605,-460.0,0.00018885,2]
[368664060,1751280638614,-460.0,0.00018885,2]
[368664061,1751280638623,-656.83,0.00018885,2]
[368664062,1751280638633,-870.58,0.00018885,2]
[368664063,1751280638642,-511.78,0.00018885,2]
[368664064,1751280638651,-460.0,0.00018885,2]
[368664065,1751280638661,-489.39,0.00018885,2]
[368664066,1751280638670,-516.01,0.00018885,2]
[368664067,1751280638679,-334.15595049,0.00018885,2]
[368664068,1751280638688,-508.9693991,0.00018885,2]
[368664069,1751280638697,-460.0,0.00018885,2]
[368664070,1751280638706,-460.0,0.00018885,2]
[368664071,1751280638715,-460.0,0.00018885,2]
[368664072,1751280638724,-196.45007949,0.00018886,2]
[368664073,1751280638733,-460.0,0.00018886,2]
[368664074,1751280638742,-460.0,0.00018886,2]
[368664075,1751280638752,-460.0,0.00018886,2]
[368664076,1751280638761,-1499.27,0.00018886,2]
[368664077,1751280638770,-460.0,0.00018886,2]
[368664078,1751280638779,-460.0,0.00018886,2]
[368664079,1751280638788,-460.0,0.00018886,2]
[368664080,1751280638797,-460.0,0.00018886,2]
[368664081,1751280638806,-460.0,0.00018886,2]
[368664082,1751280638816,-460.0,0.00018887,2]
[368664083,1751280638826,-460.0,0.00018887,2]
[368664084,1751280638838,-460.0,0.00018887,2]
[368664085,1751280638847,-460.0,0.00018887,2]
[368664086,1751280638856,-460.0,0.00018887,2]
[368664087,1751280638865,-460.0,0.00018887,2]
[368664088,1751280638874,-460.0,0.00018887,2]
[368664089,1751280638884,-460.0,0.00018887,2]
[368664090,1751280638895,-480.16,0.00018887,2]
[368664091,1751280638903,-460.0,0.00018887,2]
[368664092,1751280638913,-460.0,0.00018887,2]
[368664093,1751280638922,-940.93,0.00018887,2]
[368664094,1751280638931,-460.0,0.00018887,2]
[368664095,1751280638940,-460.0,0.00018887,2]
[368664096,1751280638950,-460.0,0.00018887,2]
[368664097,1751280638960,-460.0,0.00018887,2]
[368664098,1751280638969,-460.0,0.00018887,2]
[368664099,1751280638978,-222.94932843,0.00018888,2]
[368664100,1751280638987,-460.0,0.00018888,2]
[368664101,1751280638996,-460.0,0.00018972,2]
[368664102,1751280639006,-460.0,0.00019,2]
[368664103,1751280639015,-460.0,0.00019,2]
[368664104,1751280639024,-460.0,0.0001905,2]
[368664105,1751280639035,-460.0,0.0001905,2]
[368664106,1751280639047,-837.16779106,0.00019061,2]
[368664107,1751280639057,-847.41730813,0.00019061,2]
[368664108,1751280639066,-160.0,0.00019061,2]
[368664109,1751280639075,-160.0,0.00019061,2]
[368664111,1751280639085,-213.84631524,0.00019061,2]
[368664112,1751280639094,-160.0,0.00019061,2]
[368664113,1751280639103,-230.31346914,0.00019061,2]
[368664114,1751280639116,-12569.13231816,0.00019061,2]
[368664115,1751280639126,-160.0,0.00019061,2]
[368664116,1751280639136,-214.99848635,0.00019061,2]
[368664117,1751280639145,-624.9,0.00019159,2]
[368664118,1751280639155,-578.61,0.00019159,2]
[368664119,1751280639163,-460.0,0.00019159,2]
[368664120,1751280639174,-460.0,0.00019159,2]
[368664121,1751280639185,-460.0,0.00019159,2]
[368664122,1751280639196,-656.83,0.00019159,2]
[368664123,1751280639207,-870.58,0.00019159,2]
[368664124,1751280639217,-460.0,0.00019159,2]
[368664125,1751280639227,-460.0,0.00019159,2]
[368664126,1751280639236,-460.0,0.00019159,2]
[368664127,1751280639245,-361.41,0.0001916,2]
[368664128,1751280639254,-1499.27,0.0001916,2]
[368664129,1751280639264,-460.0,0.0001916,2]
[368664130,1751280639273,-524.7853056,0.00019161,2]
[368664131,1751280639282,-460.0,0.00019161,2]
[368664132,1751280639291,-940.93,0.00019161,2]
[368664133,1751280639300,-460.0,0.00019161,2]
[368664134,1751280639309,-460.0,0.00019161,2]
[368664135,1751280639319,-460.0,0.00019161,2]
[368664136,1751280639328,-460.0,0.00019161,2]
[368664137,1751280639337,-460.0,0.00019161,2]
[368664138,1751280639346,-460.0,0.00019162,2]
[368664139,1751280639357,-240.181243,0.00019178,2]
[368664140,1751280639366,-460.0,0.00019246,2]
[368664141,1751280639376,-1000.0,0.00019272,2]
[368664142,1751280639385,-1000.0,0.00019272,2]
[368664143,1751280639395,-1029.66923776,0.00019272,2]
[368664144,1751280639404,-460.0,0.00019274,2]
[368664145,1751280639414,-460.0,0.00019274,2]
[368664146,1751280639423,-624.9,0.00019433,2]
[368664147,1751280639433,-578.61,0.00019433,2]
[368664148,1751280639442,-460.0,0.00019433,2]
[368664149,1751280639451,-460.0,0.00019433,2]
[368664150,1751280639461,-460.0,0.00019433,2]
[368664151,1751280639470,-656.83,0.00019433,2]
[368664152,1751280639480,-870.58,0.00019433,2]
[368664153,1751280639489,-460.0,0.00019433,2]
[368664154,1751280639498,-460.0,0.00019433,2]
[368664155,1751280639507,-460.0,0.00019433,2]
[368664156,1751280639517,-1499.27,0.00019434,2]
[368664157,1751280639526,-460.0,0.00019434,2]
[368664158,1751280639536,-460.0,0.00019435,2]
[368664159,1751280639545,-940.93,0.00019435,2]
[368664160,1751280639555,-460.0,0.00019435,2]
[368664161,1751280639565,-460.0,0.00019435,2]
[368664162,1751280639574,-460.0,0.00019435,2]